fUST/lending_fUST_20250609
["ID","MTS","AMOUNT","RATE_DAILY","PERIOD"]
[365038012,1749420641639,-453.01321316,0.00020273,2]
[365038013,1749420641649,-390.0,0.00020273,2]
[365038014,1749420641659,-440.0,0.00020273,2]
[365038015,1749420641668,-440.0,0.00020273,2]
[365038016,1749420641679,-390.0,0.00020273,2]
[365038017,1749420641690,-440.0,0.00020273,2]
[365038018,1749420641701,-440.0,0.00020273,2]
[365038019,1749420641710,-440.0,0.00020273,2]
[365038020,1749420641720,-440.0,0.00020273,2]
[365038021,1749420641729,-440.0,0.00020273,2]
[365038022,1749420641743,-1467.97,0.00020273,2]
[365038023,1749420641754,-1143.64,0.00020273,2]
[365038024,1749420641763,-440.0,0.00020273,2]
[365038025,1749420641773,-440.0,0.00020273,2]
[365038026,1749420641784,-440.0,0.00020273,2]
[365038027,1749420641794,-440.0,0.00020273,2]
[365038028,1749420641804,-440.0,0.00020273,2]
[365038029,1749420641814,-440.0,0.00020273,2]
[365038030,1749420641824,-440.0,0.00020273,2]
[365038031,1749420641834,-1415.17,0.00020273,2]
[365038032,1749420641858,-440.0,0.00020273,2]
[365038033,1749420641869,-440.0,0.00020273,2]
[365038034,1749420641880,-380.0,0.00020273,2]
[365038035,1749420641891,-440.0,0.00020273,2]
[365038036,1749420641902,-485.45,0.00020273,2]
[365038037,1749420641912,-440.0,0.00020273,2]
[365038038,1749420641922,-390.0,0.00020273,2]
[365038039,1749420641931,-2568.46,0.00020273,2]
[365038040,1749420641942,-1143.02,0.00020273,2]
[365038041,1749420641953,-440.0,0.00020273,2]
[365038042,1749420641963,-440.0,0.00020273,2]
[365038043,1749420641974,-1508.21,0.00020273,2]
[365038044,1749420641986,-440.0,0.00020273,2]
[365038045,1749420641997,-440.0,0.00020273,2]
[365038046,1749420642006,-375.9081,0.00020273,2]
[365038047,1749420642017,-440.0,0.00020273,2]
[365038048,1749420642028,-440.0,0.00020273,2]
[365038049,1749420642040,-440.0,0.00020273,2]
[365038050,1749420642049,-502.97,0.00020273,2]
[365038051,1749420642060,-440.0,0.00020273,2]
[365038052,1749420642070,-440.0,0.00020273,2]
[365038053,1749420642081,-440.0,0.00020273,2]
[365038054,1749420642092,-1346.99,0.00020273,2]
[365038055,1749420642102,-440.0,0.00020273,2]
[365038056,1749420642112,-440.0,0.00020273,2]
[365038057,1749420642123,-440.0,0.00020273,2]
[365038058,1749420642278,-2696.79,0.00020273,2]
[365038059,1749420642290,-1720.85,0.00020273,2]
[365038060,1749420642300,-1719.84,0.00020273,2]
[365038061,1749420642310,-440.0,0.00020273,2]
[365038062,1749420642320,-440.0,0.00020273,2]
[365038063,1749420642330,-440.0,0.00020273,2]
[365038064,1749420642340,-440.0,0.00020273,2]
[365038065,1749420642350,-440.0,0.00020273,2]
[365038066,1749420642360,-440.0,0.00020273,2]
[365038067,1749420642370,-2364.37,0.00020273,2]
[365038068,1749420642380,-562.52,0.00020273,2]
[365038069,1749420642391,-1138.16,0.00020273,2]
[365038070,1749420642401,-2603.17,0.00020273,2]
[365038071,1749420642416,-2952.52,0.00020273,2]
[365038073,1749420642426,-216.94,0.00020273,2]
[365038075,1749420642437,-440.0,0.00020273,2]
[365038078,1749420642451,-769.0,0.00020273,2]
[365038081,1749420642461,-348.709724,0.00020273,2]
[365038083,1749420642471,-440.0,0.00020273,2]
[365038084,1749420642481,-350.0,0.00020273,2]
[365038085,1749420642492,-440.0,0.00020273,2]
[365038086,1749420642503,-380.0,0.00020273,2]
[365038087,1749420642514,-447.3515898,0.00020309,2]
[365038088,1749420642526,-151.0,0.00020321,2]
[365038090,1749420642536,-151.0,0.00020321,2]
[365038091,1749420642547,-151.0,0.00020321,2]
[365038092,1749420642557,-151.0,0.00020321,2]
[365038094,1749420642567,-151.0,0.00020321,2]
[365038096,1749420642576,-151.0,0.00020417,2]
[365038097,1749420642586,-151.0,0.00020417,2]
[365038098,1749420642596,-151.0,0.00020417,2]
[365038099,1749420642606,-151.0,0.00020417,2]
[365038100,1749420642616,-4145.0600695,0.00020417,3]
[365038101,1749420642626,-1162.72,0.00020507,2]
[365038102,1749420642637,-536.41,0.00020546,2]
[365038103,1749420642648,-536.41,0.00020546,2]
[365038104,1749420642658,-380.0,0.00020547,2]
[365038105,1749420642667,-549.81917017,0.00020547,2]
[365038106,1749420642677,-440.0,0.00020547,2]
[365038107,1749420642687,-440.0,0.00020547,2]
[365038108,1749420642697,-440.0,0.00020547,2]
[365038109,1749420642707,-380.0,0.00020547,2]
[365038110,1749420642716,-440.0,0.00020547,2]
[365038111,1749420642726,-500.0,0.00020547,2]
[365038112,1749420642738,-440.0,0.00020547,2]
[365038113,1749420642748,-343.90499062,0.00020547,2]
[365038114,1749420642758,-151.0,0.00020547,2]
[365038115,1749420642768,-440.0,0.00020547,2]
[365038116,1749420642778,-380.0,0.00020547,2]
[365038117,1749420642788,-1467.97,0.00020547,2]
[365038118,1749420642798,-1143.64,0.00020547,2]
[365038119,1749420642808,-151.0,0.00020547,2]
[365038120,1749420642818,-440.0,0.00020547,2]
[365038121,1749420642828,-440.0,0.00020547,2]
[365038122,1749420642837,-151.0,0.00020547,2]
[365038124,1749420642854,-440.0,0.00020547,2]
[365038127,1749420642867,-151.0,0.00020547,2]
[365038129,1749420642877,-440.0,0.00020547,2]
[365038131,1749420642887,-151.0,0.00020547,2]
[365038133,1749420642897,-151.0,0.00020547,2]
[365038135,1749420642907,-440.0,0.00020547,2]
[365038137,1749420642917,-440.0,0.00020547,2]
[365038139,1749420642927,-151.0,0.00020547,2]
[365038141,1749420642937,-440.0,0.00020547,2]
[365038143,1749420642946,-1415.17,0.00020547,2]
[365038145,1749420642956,-440.0,0.00020547,2]
[365038147,1749420642967,-440.0,0.00020547,2]
[365038149,1749420642977,-440.0,0.00020547,2]
[365038151,1749420642989,-485.45,0.00020547,2]
[365038153,1749420642999,-440.0,0.00020547,2]
[365038155,1749420643008,-2429.661368,0.00020547,2]
[365038157,1749420643018,-2568.46,0.00020547,2]
[365038159,1749420643028,-2429.661368,0.00020547,2]
[365038161,1749420643038,-1143.02,0.00020547,2]
[365038163,1749420643048,-440.0,0.00020547,2]
[365038166,1749420643061,-440.0,0.00020547,2]
[365038168,1749420643071,-1508.21,0.00020547,2]
[365038170,1749420643081,-440.0,0.00020547,2]
[365038172,1749420643091,-440.0,0.00020547,2]
[365038174,1749420643100,-380.0,0.00020547,2]
[365038176,1749420643110,-440.0,0.00020547,2]
[365038178,1749420643120,-440.0,0.00020547,2]
[365038180,1749420643130,-502.97,0.00020547,2]
[365038182,1749420643141,-555.86,0.00020547,2]
[365038184,1749420643150,-151.0,0.00020547,2]
[365038186,1749420643160,-440.0,0.00020547,2]
[365038188,1749420643170,-440.0,0.00020547,2]
[365038190,1749420643181,-1346.99,0.00020547,2]
[365038193,1749420643192,-440.0,0.00020547,2]
[365038195,1749420643202,-440.0,0.00020547,2]
[365038197,1749420643212,-2696.79,0.00020547,2]
[365038199,1749420643222,-1720.85,0.00020547,2]
[365038201,1749420643231,-634.864202,0.00020547,2]
[365038203,1749420643242,-1719.84,0.00020547,2]
[365038205,1749420643252,-634.864202,0.00020547,2]
[365038207,1749420643261,-440.0,0.00020547,2]
[365038209,1749420643271,-440.0,0.00020547,2]
[365038211,1749420643281,-440.0,0.00020547,2]
[365038213,1749420643290,-440.0,0.00020547,2]
[365038215,1749420643300,-440.0,0.00020547,2]
[365038217,1749420643310,-440.0,0.00020547,2]
[365038219,1749420643320,-2364.37,0.00020547,2]
[365038221,1749420643330,-562.52,0.00020547,2]
[365038223,1749420643340,-1138.16,0.00020547,2]
[365038225,1749420643350,-2603.17,0.00020547,2]
[365038227,1749420643359,-2952.52,0.00020547,2]
[365038229,1749420643370,-440.0,0.00020547,2]
[365038231,1749420643380,-769.0,0.00020547,2]
[365038233,1749420643389,-440.0,0.00020547,2]
[365038235,1749420643400,-350.0,0.00020547,2]
[365038237,1749420643410,-440.0,0.00020547,2]
[365038239,1749420643419,-151.0,0.00020548,2]
[365038241,1749420643429,-151.0,0.00020548,2]
[365038244,1749420643440,-151.0,0.00020548,2]
[365038246,1749420643452,-265.491957,0.00020548,2]
[365038248,1749420643462,-151.0,0.00020548,2]
[365038250,1749420643471,-259.437978,0.00020548,2]
[365038252,1749420643481,-151.0,0.00020548,2]
[365038253,1749420643493,-151.0,0.00020548,2]
[365038254,1749420643503,-151.0,0.00020548,2]
[365038255,1749420643513,-381.183681,0.00020548,2]
[365038256,1749420643524,-381.183681,0.00020548,2]
[365038257,1749420643534,-500.0,0.00020548,2]
[365038258,1749420643545,-500.0,0.00020548,2]
[365038259,1749420643555,-500.0,0.00020548,2]
[365038260,1749420643565,-500.0,0.00020548,2]
[365038261,1749420643575,-500.0,0.00020548,2]
[365038262,1749420643585,-500.0,0.00020548,2]
[365038263,1749420643594,-500.0,0.00020548,2]
[365038264,1749420643604,-500.0,0.00020548,2]
[365038265,1749420643615,-500.0,0.00020548,2]
[365038266,1749420643625,-500.0,0.00020548,2]
[365038267,1749420643635,-500.0,0.00020548,2]
[365038268,1749420643646,-500.0,0.00020548,2]
[365038269,1749420643655,-500.0,0.00020548,2]
[365038270,1749420643666,-500.0,0.00020548,2]
[365038272,1749420643676,-500.0,0.00020548,2]
[365038274,1749420643686,-500.0,0.00020548,2]
[365038276,1749420643696,-500.0,0.00020548,2]
[365038278,1749420643706,-500.0,0.00020548,2]
[365038280,1749420643716,-500.0,0.00020548,2]
[365038282,1749420643725,-500.0,0.00020548,2]
[365038284,1749420643735,-500.0,0.00020548,2]
[365038286,1749420643745,-624.45348843,0.00020548,2]
[365038288,1749420643755,-500.0,0.00020548,2]
[365038290,1749420643768,-500.0,0.00020548,2]
[365038292,1749420643778,-500.0,0.00020548,2]
[365038294,1749420643788,-536.41,0.00020589,2]
[365038296,1749420643798,-4145.0600695,0.0002059,3]
[365038298,1749420643808,-1639.36,0.000206,2]
[365038300,1749420643818,-349.0981882,0.0002063,2]
[365038302,1749420643828,-364.8515477,0.00020658,2]
[365038304,1749420643837,-364.8515477,0.00020658,2]
[365038306,1749420643847,-364.8515477,0.00020658,2]
[365038308,1749420643857,-3156.86977727,0.00020707,2]
[365038310,1749420643867,-630.0,0.00020722,2]
[365038312,1749420643878,-153.01897109,0.00020722,2]
[365038314,1749420643887,-151.0,0.00020722,2]
[365038316,1749420643897,-151.0,0.00020722,2]
[365038318,1749420643907,-217.96894018,0.00020722,2]
[365038321,1749420643917,-630.0,0.00020749,2]
[365038323,1749420643927,-213.05153702,0.00020762,3]
[365038325,1749420643937,-4145.0600695,0.00020762,3]
[365038327,1749420643946,-842.5625,0.00020762,3]
[365038329,1749420643956,-1200.0,0.00020765,2]
[365038331,1749420643966,-630.0,0.00020777,2]
[365038333,1749420643975,-630.0,0.00020804,2]
[365038335,1749420643986,-536.41,0.0002082,2]
[365038337,1749420643997,-536.41,0.0002082,2]
[365038339,1749420644007,-536.41,0.0002082,2]
[365038341,1749420644017,-536.41,0.0002082,2]
[365038343,1749420644027,-536.47,0.0002082,2]
[365038345,1749420644037,-390.0,0.00020821,2]
[365038347,1749420644047,-1744.0,0.00020821,2]
[365038349,1749420644056,-1744.0,0.00020821,2]
[365038351,1749420644066,-1744.0,0.00020821,2]
[365038353,1749420644076,-1744.0,0.00020821,2]
[365038355,1749420644086,-1744.0,0.00020821,2]
[365038357,1749420644096,-1744.0,0.00020821,2]
[365038359,1749420644105,-1744.0,0.00020821,2]
[365038361,1749420644115,-1744.0,0.00020821,2]
[365038363,1749420644126,-1744.0,0.00020821,2]
[365038365,1749420644136,-1744.0,0.00020821,2]
[365038367,1749420644146,-1744.0,0.00020821,2]
[365038369,1749420644155,-1744.0,0.00020821,2]
[365038371,1749420644165,-1744.0,0.00020821,2]
[365038373,1749420644175,-1744.0,0.00020821,2]
[365038376,1749420644185,-1744.0,0.00020821,2]
[365038378,1749420644194,-1312.2420449,0.00020821,2]
[365038380,1749420644204,-151.0,0.00020821,2]
[365038382,1749420644214,-151.0,0.00020821,2]
[365038384,1749420644224,-440.0,0.00020821,2]
[365038386,1749420644234,-975.75341127,0.00020821,2]
[365038388,1749420644243,-151.0,0.00020821,2]
[365038390,1749420644253,-151.0,0.00020821,2]
[365038392,1749420644263,-151.0,0.00020821,2]
[365038394,1749420644272,-151.0,0.00020821,2]
[365038396,1749420644282,-457.26,0.00020821,2]
[365038398,1749420644291,-440.0,0.00020821,2]
[365038400,1749420644301,-1744.0,0.00020821,2]
[365038402,1749420644311,-1744.0,0.00020821,2]
[365038404,1749420644321,-1744.0,0.00020821,2]
[365038406,1749420644330,-1744.0,0.00020821,2]
[365038408,1749420644340,-1744.0,0.00020821,2]
[365038410,1749420644349,-1744.0,0.00020821,2]
[365038412,1749420644359,-1744.0,0.00020821,2]
[365038414,1749420644369,-1744.0,0.00020821,2]
[365038416,1749420644378,-1744.0,0.00020821,2]
[365038418,1749420644388,-1744.0,0.00020821,2]
[365038420,1749420644397,-1744.0,0.00020821,2]
[365038422,1749420644407,-1744.0,0.00020821,2]
[365038424,1749420644417,-1744.0,0.00020821,2]
[365038426,1749420644426,-1744.0,0.00020821,2]
[365038428,1749420644437,-1744.0,0.00020821,2]
[365038430,1749420644451,-1728.0,0.00020821,2]
[365038432,1749420644460,-440.0,0.00020821,2]
[365038434,1749420644470,-151.0,0.00020821,2]
[365038436,1749420644481,-440.0,0.00020821,2]
[365038438,1749420644493,-1467.97,0.00020821,2]
[365038440,1749420644503,-1143.64,0.00020821,2]
[365038442,1749420644512,-440.0,0.00020821,2]
[365038445,1749420644525,-151.0,0.00020821,2]
[365038447,1749420644534,-360.0,0.00020821,2]
[365038449,1749420644544,-440.0,0.00020821,2]
[365038451,1749420644554,-151.0,0.00020821,2]
[365038453,1749420644564,-440.0,0.00020821,2]
[365038455,1749420644574,-151.0,0.00020821,2]
[365038457,1749420644584,-440.0,0.00020821,2]
[365038459,1749420644594,-440.0,0.00020821,2]
[365038461,1749420644604,-151.0,0.00020821,2]
[365038463,1749420644614,-440.0,0.00020821,2]
[365038465,1749420644624,-1415.17,0.00020821,2]
[365038467,1749420644634,-440.0,0.00020821,2]
[365038469,1749420644644,-440.0,0.00020821,2]
[365038471,1749420644654,-370.0,0.00020821,2]
[365038473,1749420644664,-485.45,0.00020821,2]
[365038476,1749420644674,-440.0,0.00020821,2]
[365038478,1749420644684,-2429.661368,0.00020821,2]
[365038480,1749420644693,-2568.46,0.00020821,2]
[365038482,1749420644703,-151.0,0.00020821,2]
[365038484,1749420644713,-2429.661368,0.00020821,2]
[365038486,1749420644723,-1143.02,0.00020821,2]
[365038488,1749420644733,-370.0,0.00020821,2]
[365038490,1749420644746,-440.0,0.00020821,2]
[365038492,1749420644755,-1508.21,0.00020821,2]
[365038494,1749420644766,-440.0,0.00020821,2]
[365038496,1749420644775,-440.0,0.00020821,2]
[365038498,1749420644786,-440.0,0.00020821,2]
[365038500,1749420644797,-151.0,0.00020821,2]
[365038502,1749420644807,-502.97,0.00020821,2]
[365038504,1749420644818,-249.551701,0.00020821,2]
[365038506,1749420644828,-440.0,0.00020821,2]
[365038508,1749420644838,-440.0,0.00020821,2]
[365038510,1749420644848,-1346.99,0.00020821,2]
[365038512,1749420644858,-440.0,0.00020821,2]
[365038514,1749420644869,-440.0,0.00020821,2]
[365038517,1749420644879,-1720.85,0.00020821,2]
[365038519,1749420644890,-2696.79,0.00020821,2]
[365038521,1749420644900,-634.864202,0.00020821,2]
[365038533,1749420644910,-1719.84,0.00020821,2]
[365038536,1749420645033,-634.864202,0.00020821,2]
[365038539,1749420645045,-440.0,0.00020821,2]
[365038541,1749420645056,-440.0,0.00020821,2]
[365038543,1749420645066,-203.32,0.00020821,2]
[365038545,1749420645076,-151.0,0.00020821,2]
[365038547,1749420645087,-440.0,0.00020821,2]
[365038549,1749420645097,-151.0,0.00020821,2]
[365038551,1749420645107,-440.0,0.00020821,2]
[365038553,1749420645118,-440.0,0.00020821,2]
[365038555,1749420645128,-2364.37,0.00020821,2]
[365038557,1749420645138,-562.52,0.00020821,2]
[365038560,1749420645148,-1138.16,0.00020821,2]
[365038562,1749420645158,-2603.17,0.00020821,2]
[365038564,1749420645169,-2952.52,0.00020821,2]
[365038566,1749420645179,-440.0,0.00020821,2]
[365038568,1749420645190,-769.0,0.00020821,2]
[365038570,1749420645200,-1744.0,0.00020821,2]
[365038572,1749420645209,-1744.0,0.00020821,2]
[365038574,1749420645219,-151.0,0.00020821,2]
[365038576,1749420645228,-1744.0,0.00020821,2]
[365038578,1749420645241,-1744.0,0.00020821,2]
[365038580,1749420645252,-1744.0,0.00020821,2]
[365038582,1749420645261,-1744.0,0.00020821,2]
[365038584,1749420645271,-1744.0,0.00020821,2]
[365038586,1749420645281,-440.0,0.00020821,2]
[365038588,1749420645292,-151.0,0.00020821,2]
[365038590,1749420645302,-1744.0,0.00020821,2]
[365038592,1749420645312,-1744.0,0.00020821,2]
[365038594,1749420645322,-1744.0,0.00020821,2]
[365038597,1749420645333,-1744.0,0.00020821,2]
[365038600,1749420645343,-401.41,0.00020821,2]
[365038602,1749420645353,-1744.0,0.00020821,2]
[365038604,1749420645363,-1744.0,0.00020821,2]
[365038606,1749420645373,-1744.0,0.00020821,2]
[365038609,1749420645383,-1744.0,0.00020821,2]
[365038611,1749420645394,-440.0,0.00020821,2]
[365038614,1749420645405,-1744.0,0.00020821,2]
[365038616,1749420645415,-1744.0,0.00020821,2]
[365038618,1749420645425,-1744.0,0.00020821,2]
[365038620,1749420645438,-364.4406513,0.00020822,2]
[365038623,1749420645448,-630.0,0.00020832,2]
[365038625,1749420645458,-630.0,0.00020859,2]
[365038626,1749420645468,-258.57185496,0.00020873,2]
[365038628,1749420645478,-500.0,0.00020873,2]
[365038631,1749420645502,-504.15916561,0.00020873,2]
[365038632,1749420645513,-502.34527361,0.00020873,2]
[365038634,1749420645523,-600.0,0.00020873,2]
[365038636,1749420645533,-500.0,0.00020873,2]
[365038638,1749420645543,-500.0,0.00020873,2]
[365038640,1749420645553,-500.0,0.00020873,2]
[365038642,1749420645563,-500.0,0.00020873,2]
[365038644,1749420645573,-500.0,0.00020873,2]
[365038646,1749420645584,-500.0,0.00020873,2]
[365038648,1749420645594,-500.0,0.00020873,2]
[365038650,1749420645604,-500.0,0.00020873,2]
[365038652,1749420645614,-500.0,0.00020873,2]
[365038654,1749420645624,-500.0,0.00020873,2]
[365038656,1749420645633,-500.0,0.00020873,2]
[365038658,1749420645643,-500.0,0.00020873,2]
[365038660,1749420645653,-630.0,0.00020886,2]
[365038662,1749420645663,-420.0,0.00020893,2]
[365038664,1749420645674,-420.0,0.00020898,2]
[365038667,1749420645684,-630.0,0.00020914,2]
[365038669,1749420645694,-153.0,0.00020932,2]
[365038671,1749420645703,-153.0,0.00020932,2]
[365038673,1749420645715,-4145.0600695,0.00020934,4]
[365038675,1749420645725,-630.0,0.00020941,2]
[365038677,1749420645737,-630.0,0.00020969,2]
[365038679,1749420645747,-630.0,0.00020996,2]
[365038681,1749420645757,-352.2101087,0.00021014,2]
[365038683,1749420645767,-630.0,0.00021023,2]
[365038685,1749420645777,-153.0,0.00021041,2]
[365038687,1749420645787,-306.0,0.00021041,2]
[365038689,1749420645797,-153.0,0.00021041,2]
[365038691,1749420645807,-153.0,0.00021041,2]
[365038693,1749420645817,-153.0,0.00021041,2]
[365038695,1749420645827,-153.0,0.00021041,2]
[365038697,1749420645837,-156.8421927,0.00021041,2]
[365038699,1749420645847,-176.6035851,0.00021041,2]
[365038701,1749420645857,-158.6873432,0.00021041,2]
[365038703,1749420645868,-573.126752,0.00021041,2]
[365038705,1749420645878,-158.6873432,0.00021041,2]
[365038707,1749420645887,-573.126752,0.00021041,2]
[365038709,1749420645897,-573.126752,0.00021041,2]
[365038711,1749420645907,-158.6873432,0.00021041,2]
[365038713,1749420645916,-573.126752,0.00021041,2]
[365038715,1749420645926,-158.6873432,0.00021041,2]
[365038717,1749420645936,-630.0,0.00021051,2]
[365038719,1749420645946,-158.6873432,0.00021068,2]
[365038721,1749420645955,-176.7524085,0.00021068,2]
[365038723,1749420645965,-573.126752,0.00021068,2]
[365038725,1749420645975,-158.6873432,0.00021068,2]
[365038727,1749420645987,-573.126752,0.00021068,2]
[365038729,1749420645998,-176.7524085,0.00021068,2]
[365038731,1749420646008,-158.6873432,0.00021068,2]
[365038733,1749420646018,-176.7524085,0.00021068,2]
[365038735,1749420646028,-573.126752,0.00021068,2]
[365038737,1749420646038,-176.7524085,0.00021068,2]
[365038739,1749420646048,-573.126752,0.00021068,2]
[365038741,1749420646058,-158.6873432,0.00021068,2]
[365038743,1749420646068,-158.6873432,0.00021068,2]
[365038745,1749420646078,-176.7524085,0.00021068,2]
[365038747,1749420646088,-573.126752,0.00021068,2]
[365038749,1749420646098,-176.7524085,0.00021068,2]
[365038751,1749420646108,-158.6873432,0.00021068,2]
[365038753,1749420646118,-573.126752,0.00021068,2]
[365038755,1749420646129,-573.126752,0.00021068,2]
[365038757,1749420646139,-158.6873432,0.00021068,2]
[365038759,1749420646149,-176.7524085,0.00021068,2]
[365038761,1749420646160,-176.7524085,0.00021068,2]
[365038763,1749420646170,-158.6873432,0.00021068,2]
[365038765,1749420646181,-573.126752,0.00021068,2]
[365038767,1749420646190,-158.6873432,0.00021068,2]
[365038769,1749420646200,-573.126752,0.00021068,2]
[365038771,1749420646209,-630.0,0.00021078,2]
[365038773,1749420646220,-518.5,0.00021095,2]
[365038775,1749420646230,-440.0,0.00021095,2]
[365038777,1749420646242,-151.0,0.00021095,2]
[365038779,1749420646251,-500.0,0.00021095,3]
[365038781,1749420646261,-151.0,0.00021095,2]
[365038783,1749420646271,-440.0,0.00021095,2]
[365038785,1749420646280,-151.0,0.00021095,2]
[365038787,1749420646290,-440.0,0.00021095,2]
[365038789,1749420646299,-1467.97,0.00021095,2]
[365038791,1749420646309,-1143.64,0.00021095,2]
[365038793,1749420646320,-440.0,0.00021095,2]
[365038795,1749420646330,-151.0,0.00021095,2]
[365038798,1749420646340,-440.0,0.00021095,2]
[365038800,1749420646350,-440.0,0.00021095,2]
[365038802,1749420646360,-440.0,0.00021095,2]
[365038804,1749420646370,-440.0,0.00021095,2]
[365038806,1749420646380,-440.0,0.00021095,2]
[365038808,1749420646389,-1415.17,0.00021095,2]
[365038810,1749420646399,-440.0,0.00021095,2]
[365038812,1749420646409,-151.0,0.00021095,2]
[365038814,1749420646419,-440.0,0.00021095,2]
[365038816,1749420646429,-151.0,0.00021095,2]
[365038818,1749420646440,-485.45,0.00021095,2]
[365038821,1749420646454,-440.0,0.00021095,2]
[365038824,1749420646464,-151.0,0.00021095,2]
[365038827,1749420646474,-2568.46,0.00021095,2]
[365038829,1749420646486,-153.701016,0.00021095,2]
[365038831,1749420646502,-1143.02,0.00021095,2]
[365038833,1749420646512,-440.0,0.00021095,2]
[365038835,1749420646525,-1508.21,0.00021095,2]
[365038837,1749420646535,-440.0,0.00021095,2]
[365038839,1749420646544,-440.0,0.00021095,2]
[365038841,1749420646554,-440.0,0.00021095,2]
[365038843,1749420646565,-381.183681,0.00021095,2]
[365038845,1749420646575,-151.0,0.00021095,2]
[365038847,1749420646584,-381.183681,0.00021095,2]
[365038849,1749420646594,-502.97,0.00021095,2]
[365038851,1749420646607,-440.0,0.00021095,2]
[365038853,1749420646616,-1346.99,0.00021095,2]
[365038855,1749420646626,-440.0,0.00021095,2]
[365038857,1749420646636,-440.0,0.00021095,2]
[365038859,1749420646645,-1720.85,0.00021095,2]
[365038861,1749420646656,-2696.79,0.00021095,2]
[365038865,1749420646679,-634.864202,0.00021095,2]
[365038867,1749420646692,-1719.84,0.00021095,2]
[365038869,1749420646702,-634.864202,0.00021095,2]
[365038871,1749420646712,-440.0,0.00021095,2]
[365038874,1749420646723,-440.0,0.00021095,2]
[365038876,1749420646734,-151.0,0.00021095,2]
[365038878,1749420646745,-440.0,0.00021095,2]
[365038880,1749420646755,-151.0,0.00021095,2]
[365038882,1749420646766,-164.64,0.00021095,2]
[365038884,1749420646775,-414.09,0.00021095,2]
[365038886,1749420646785,-2364.37,0.00021095,2]
[365038888,1749420646796,-562.52,0.00021095,2]
[365038890,1749420646806,-1138.16,0.00021095,2]
[365038892,1749420646816,-2603.17,0.00021095,2]
[365038894,1749420646826,-2952.52,0.00021095,2]
[365038896,1749420646836,-440.0,0.00021095,2]
[365038898,1749420646846,-769.0,0.00021095,2]
[365038900,1749420646857,-151.0,0.00021095,2]
[365038902,1749420646868,-440.0,0.00021095,2]
[365038904,1749420646877,-151.0,0.00021095,2]
[365038906,1749420646888,-150.32,0.00021095,2]
[365038908,1749420646898,-630.0,0.00021106,2]
[365038910,1749420646908,-4145.0600695,0.00021107,4]
[365038913,1749420646919,-630.0,0.00021133,2]
[365038915,1749420646930,-630.0,0.0002116,2]
[365038917,1749420646941,-153.0,0.00021178,2]
[365038919,1749420646951,-306.0,0.00021178,2]
[365038921,1749420646962,-151.0,0.00021181,2]
[365038923,1749420646972,-151.0,0.00021181,2]
[365038925,1749420646982,-151.0,0.00021181,2]
[365038927,1749420646994,-151.0,0.00021181,2]
[365038929,1749420647004,-151.0,0.00021181,2]
[365038931,1749420647014,-2429.661368,0.00021181,2]
[365038933,1749420647024,-2429.661368,0.00021181,2]
[365038936,1749420647035,-630.0,0.00021188,2]
[365038938,1749420647045,-630.0,0.00021215,2]